Cogmind - Beta 10.2 @@@ ROGUE MODE // 2021.11.23 @ 23:05:46 Player: Geraldon Result: Destroyed by D-53 Grenadier with Mini Grenade Launcher Performance ------------- Evolutions (0) 0 Regions Visited (2) 400 Robots Destroyed (27) 135 Value Destroyed (727) 727 Prototype IDs (2) 40 Alien Tech Used (0) 0 Bonus (0) 0 TOTAL SCORE: 1302 Bonus ------- None Cogmind --------- Core Integrity 0/250 Matter 280/300 Energy 265/265 System Corruption 0% Temperature Cool (0) Movement Core (800) Ox15 Location -10/Mines Parts ------- > --- POWER (1) -------- Improved Ion Engine > --- PROPULSION (2) --- (None) > --- UTILITY (2) ------ High-capacity Storage Unit Improved Light Armor Plating > --- WEAPON (2) ------- Assault Rifle Assault Rifle > --- INVENTORY (12) --- Light Treads Light Treads Light Treads Large Storage Unit Large Storage Unit Hacking Suite Hacking Suite Light Assault Rifle Light Cannon Bore Cannon Mini Grenade Launcher Datajack Peak State ------------ > --- POWER ------------ Improved Ion Engine > --- PROPULSION ------- Light Treads Light Treads > --- UTILITY ---------- High-capacity Storage Unit Improved Light Armor Plating > --- WEAPON ----------- Assault Rifle Assault Rifle > --- INVENTORY -------- Light Treads Light Treads Light Treads Large Storage Unit Large Storage Unit Hacking Suite Hacking Suite Light Assault Rifle Light Cannon Bore Cannon Mini Grenade Launcher Datajack [Rating: 12] Favorites ----------- Power Improved Ion Engine Engine Improved Ion Engine Propulsion Light Treads Treads Light Treads Utility Light Armor Plating Storage High-capacity Storage Unit Protection Light Armor Plating Weapon Heavy EM Pulse Gun Energy Gun Heavy EM Pulse Gun Ballistic Gun Assault Rifle Ballistic Cannon Light Cannon Build | -11 -10 -10 ------- Run | Scr Mat Min Slots Evolved . | . . . Power . | . . . Propulsion . | . . . Utility . | . . . Weapon . | . . . Parts Attached 19 | 6 9 4 Power 2 | 1 1 . Engine 2 | 1 1 . Core . | . . . Reactor . | . . . Propulsion 3 | 2 1 . Treads 3 | 2 1 . Leg . | . . . Wheel . | . . . Hover . | . . . Flight . | . . . Utility 5 | 1 3 1 Device . | . . . Storage 3 | 1 2 . Processor . | . . . Hackware . | . . . Protection 2 | . 1 1 Artifact . | . . . Weapon 9 | 2 4 3 Energy Gun 4 | . 4 . Energy Cannon . | . . . Ballistic Gun 4 | 2 . 2 Ballistic Cannon 1 | . . 1 Launcher . | . . . Special Weapon . | . . . Impact Weapon . | . . . Slashing Weapon . | . . . Piercing Weapon . | . . . Special Melee Weapon . | . . . Unidentified Prototypes . | . . . Parts Lost 8 | . 3 5 Power . | . . . Propulsion 3 | . 1 2 Utility 1 | . . 1 Weapon 4 | . 2 2 Highest Loss Streak 3 | . 2 3 Average Slot Usage (%) 89 | . 87 96 Engine 13 | . 13 14 Treads 25 | . 24 27 Storage 14 | . 14 14 Protection 8 | . 7 10 Energy Gun 18 | . 18 17 Ballistic Gun 8 | . 7 10 Naked Turns . | . . . Heaviest Build 48 | 10 48 48 Greatest Support 40 | 40 40 40 Greatest Overweight (x) 1 | . 1 1 Average Overweight (x) . | . . 1 Largest Inventory Capacity 12 | 6 12 12 Average Capacity 9 | 5 8 12 Most Carried 12 | 4 12 12 Average Carried 7 | 1 6 11 Final Capacity 12 | 6 12 12 Final Carried 12 | 1 12 12 Class Distribution -------------------- 100% | Mutant Dominant Class ---------------- Mutant | -10/Materials Mutant | -10/Mines Resources | -11 -10 -10 ----------- Run | Scr Mat Min Matter Collected 470 | 244 162 64 Remotely . | . . . Salvage Created 1052 | 73 928 51 Parts 57 | 2 55 . Haulers Intercepted 2 | . 2 . Recyclers Shooed . | . . . Parts Field Recycled . | . . . Retrieved Matter . | . . . Parts Self-Destructed . | . . . Prevented . | . . . Kills | -11 -10 -10 ------- Run | Scr Mat Min Combat Hostiles Destroyed 19 | . 16 3 Guns 18 | . 15 3 AOE 1 | . 1 . Classes Destroyed 8 | 1 6 1 Worker 1 | . 1 . Builder 1 | . 1 . Hauler 2 | . 2 . Recycler 2 | 1 1 . Operator 5 | . 5 . Swarmer 3 | . 3 . Grunt 13 | . 13 . Assembled 3 | . . 3 Best Kill Streak 4 | 1 4 3 Combat Bots Only 4 | . 4 3 Max Kills in Single Turn 1 | 1 1 1 Gunslinging . | . . . Exploded 1 | . 1 . Melee . | . . . Uniques/NPCs Destroyed . | . . . Combat | -11 -10 -10 -------- Run | Scr Mat Min Damage Taken 1298 | . 667 631 Core 270 | . 108 162 Absorbed by Shields . | . . . Core Remaining (%) 100 | 100 . . Volleys Fired 90 | 3 57 30 Largest 2 | 2 2 2 Hottest 90 | 40 90 90 Shots Fired 175 | 6 109 60 Gun 174 | 6 109 59 Cannon 1 | . . 1 Launcher . | . . . Special . | . . . Kinetic 65 | 6 38 21 Thermal . | . . . Explosive . | . . . Electromagnetic 110 | . 71 39 Robot Hit Streak 14 | 2 14 5 Robot Miss Streak 4 | 1 3 4 Penetration Max . | . . . Secondary Targets 3 | . 3 . Max Gunslinging Chain 1 | . 1 . Shots Hit Robots 97 | 4 74 19 Core Hits 46 | 2 36 8 Critical Hits 1 | . 1 . Critical Kills . | . . . Critical Parts Destroyed 1 | . 1 . Melee Attacks . | . . . Impact . | . . . Slashing . | . . . Piercing . | . . . Sneak Attacks . | . . . Combat Hostiles . | . . . Follow-up Attacks . | . . . Damage Inflicted 1535 | 35 1263 237 Guns 1330 | 35 1058 237 Cannons . | . . . Explosions 187 | . 187 . Melee . | . . . Ramming 18 | . 18 . Kinetic 465 | 35 301 129 Thermal 187 | . 187 . Explosive . | . . . Electromagnetic 865 | . 757 108 Impact . | . . . Slashing . | . . . Piercing . | . . . Highest Corruption . | . . . Average Corruption . | . . . Corruption Purged . | . . . Overload Shots . | . . . Overflow Damage 2 | . 2 . Projectiles . | . . . Explosions 2 | . 2 . Melee . | . . . Knockbacks . | . . . Impact . | . . . Kinetic . | . . . Secondary . | . . . Self-Inflicted Damage 24 | . 24 . Shots 1 | . 1 . Rammed 6 | . 6 . Targets Rammed 6 | . 6 . Kicked . | . . . Crushed . | . . . Highest Temperature 297 | . 297 241 Average Temperature 87 | . 89 84 Received Heat Transfer 331 | . 171 160 Effects 4 | . 3 1 Energy Bleed 2 | . 1 1 Interference 2 | . 2 . Siege Activations . | . . . Robots Corrupted . | . . . Combat Hostiles . | . . . Parts Fried 3 | . 3 . Impact Corruptions . | . . . Robots Melted . | . . . Combat Hostiles . | . . . Parts Melted . | . . . Heat Transferred 300 | . 300 . Parts Sabotaged . | . . . Parts Stolen . | . . . Parts Stripped . | . . . Power Chain Reactions 3 | . 3 . Missiles Intercepted . | . . . Alert | -11 -10 -10 ------- Run | Scr Mat Min Peak Influence 330 | 5 330 258 Initial 108 | . 3 108 Average 172 | 1 164 217 Maximum Alert Level 1 | . 1 1 Low Security (%) 52 | 100 62 20 Level 1 47 | . 37 79 Level 2 . | . . . Level 3 . | . . . Level 4 . | . . . Level 5 . | . . . High Security . | . . . Max Security . | . . . Squads Dispatched 6 | . 6 . Investigation 1 | . 1 . Extermination . | . . . Reinforcement 5 | . 5 . Assault . | . . . Garrison . | . . . Intercept . | . . . Construction Impeded . | . . . Haulers Reinforced . | . . . Stealth | -11 -10 -10 --------- Run | Scr Mat Min Distress Signals 2 | . 2 . Communications Jammed . | . . . Distress Signals . | . . . Times Spotted 45 | . 35 10 Peak Tracking Total 8 | . 6 8 Tactical Retreats 4 | . 4 . Traps | -11 -10 -10 ------- Run | Scr Mat Min Traps Triggered 1 | . 1 . Indirectly . | . . . Trap Hack Attempts . | . . . Triggered . | . . . Disarmed . | . . . Reprogrammed . | . . . Reused . | . . . Traps Extracted . | . . . Installed . | . . . Triggered . | . . . Machines | -11 -10 -10 ---------- Run | Scr Mat Min Machines Disabled 14 | . 4 10 Max in Single Turn 1 | . 1 1 Machines Sabotaged . | . . . Garrisons Compromised . | . . . Overloaded Fab Kills . | . . . Fab Network Shutdowns . | . . . Hacking | -11 -10 -10 --------- Run | Scr Mat Min Machines Accessed 2 | . 2 . Terminals 2 | . 2 . Fabricators . | . . . Repair Stations . | . . . Recycling Units . | . . . Scanalyzers . | . . . Garrison Access . | . . . Total Hacks 6 | . 6 . Successful 3 | . 3 . Failed 3 | . 3 . Catastrophic 1 | . 1 . Database Lockouts . | . . . Manual 2 | . 2 . Terminals 6 | . 6 . Fabricators . | . . . Repair Stations . | . . . Recycling Units . | . . . Scanalyzers . | . . . Garrison Access . | . . . Terminal Hacks 1 | . 1 . Prototype ID Bank 1 | . 1 . Fabricator Hacks . | . . . Repair Station Hacks . | . . . Recycling Unit Hacks . | . . . Scanalyzer . | . . . Garrison Access Hacks . | . . . Unauthorized Hacks 2 | . 2 . Terminals 2 | . 2 . Botnet 1 | . 1 . Operators 1 | . 1 . Fabricators . | . . . Repair Stations . | . . . Recycling Units . | . . . Scanalyzers . | . . . Garrison Access . | . . . Data Cores Recovered . | . . . Used . | . . . Hacking Detections 2 | . 2 . Full Trace Events . | . . . Feedback Events . | . . . Feedback Blocked . | . . . Robot Schematics Acquired . | . . . Robots Built . | . . . Matter . | . . . Time . | . . . Total Robot Build Rating . | . . . Part Schematics Acquired . | . . . Parts Built . | . . . Matter . | . . . Time . | . . . Total Part Build Rating . | . . . Parts Repaired . | . . . Time . | . . . Parts Recycled . | . . . Recycled Matter . | . . . Retrieved Matter . | . . . Retrieved Components . | . . . Parts Scanalyzed . | . . . Part Schematics Acquired . | . . . Parts Damaged . | . . . Bothacking | -11 -10 -10 ------------ Run | Scr Mat Min Used RIF Installer . | . . . Robots Hacked . | . . . Non-combat . | . . . Combat . | . . . Robot Hacks Applied . | . . . Relay Couplers Released . | . . . Robots Rewired . | . . . Allies Hacked . | . . . Hacks Repelled . | . . . Allies | -11 -10 -10 -------- Run | Scr Mat Min Total Allies . | . . . Largest Group . | . . . Highest-Rated Group . | . . . Highest-Rated Ally . | . . . Total Orders . | . . . Ally Attacks . | . . . Total Damage . | . . . Kills . | . . . Allies Corrupted . | . . . Allies Melted . | . . . Intel | -11 -10 -10 ------- Run | Scr Mat Min Robot Analysis Total . | . . . Derelict Logs Recovered . | . . . Drone Launches . | . . . Drone Recoveries . | . . . Exploration | -11 -10 -10 ------------- Run | Scr Mat Min Turns Passed 1431 | 63 957 411 Spaces Moved 664 | 37 452 175 Core 14 | 14 . . Treads 650 | 23 452 175 Legs . | . . . Wheels . | . . . Hover . | . . . Flight . | . . . Fastest Speed 50 | 50 160 180 Average Speed 167 | 118 166 180 Slowest Speed 180 | 160 180 180 Overloaded Moves . | . . . Propulsion Burnouts . | . . . Robots Hopped . | . . . Cave-ins Triggered . | . . . Exploration Rate (%) 41 | 3 73 48 Regions Visited 2 Branch Regions 1 Pre-discovered Areas . | . . . Known Exits Taken . | . . . Unknown Exits Taken 2 | 1 1 . Scrap Searched . | . . . Spaces Dug . | . . . Terrain Destroyed 7 | . 7 . Melee . | . . . Projectile . | . . . AOE 7 | . 7 . Terrain Rammed . | . . . Walls Destroyed . | . . . Machines Disabled . | . . . Actions | -11 -10 -10 --------- Run | Scr Mat Min Total 814 | 50 552 212 Wait 2 | . 2 . Move 662 | 36 451 175 Hop . | . . . Pick Up 28 | 5 20 3 Fast Attach 4 | 2 1 1 Attach 13 | 4 6 3 Detach . | . . . Swap 2 | . 2 . Drop 7 | . 7 . Fire 90 | 3 57 30 Melee . | . . . Ram . | . . . Kick . | . . . Crush 6 | . 6 . Escape Stasis . | . . . Rewire . | . . . Trap . | . . . Miscellaneous . | . . . Route ------- -11/Scrapyard -10/Materials (discovered 4 exits: [*Mat x2] / [*Min x2]) -10/Mines History --------- Turn | Location | Event 24 | -11/Scrapyard | Discovered new exit (range 15) 64 | -11/Scrapyard | Entered Materials 267 | -10/Materials | Discovered new exit (range 12) 312 | -10/Materials | Build established: Mutant 511 | -10/Materials | Discovered new exit (range 11) 590 | -10/Materials | Discovered new exit (range 10) 817 | -10/Materials | Discovered new exit (range 15) 1021 | -10/Materials | Entered Mines 1239 | -10/Mines | Assembled infested the area 1244 | -10/Mines | Assisted by a Guerilla fighting off Assembled 1297 | -10/Mines | Core integrity fell below 50% 1321 | -10/Mines | Lost 3 parts (1u2w) 1429 | -10/Mines | Core integrity fell below 20% 1432 | -10/Mines | Destroyed by D-53 Grenadier with Mini Grenade Launcher Last Messages --------------- 01348_ The unstable cave ceiling collapses. 01348_ U-05 Engineer builds a Wall. 01351_ The unstable cave ceiling collapses. 01353_ U-05 Engineer builds a Wall. 01362_ K-01 Serf collects debris. 01362_ U-05 Engineer lays Concrete. 01365_ K-01 Serf collects debris. 01365_ U-05 Engineer lays Concrete. 01368_ U-05 Engineer builds a Wall. 01369_ K-01 Serf collects debris. 01372_ U-05 Engineer builds a Wall. 01373_ K-01 Serf collects debris. 01378_ U-05 Engineer lays Concrete. 01382_ U-05 Engineer builds a Wall. 01384_ Acquired Mni. Grenade Launcher. 01386_ U-05 Engineer lays Concrete. 01389_ Acquired Imp. Light Armor Plating. 01390_ Acquired 10 matter. 01424_ Lgt. Treads destroyed. 01427_ The unstable cave ceiling collapses. Map ----- +----------------------------------------------------+ | ????# "" #????????????????? | | ????# """ #????????????????? | | ????# """ " #????????????????? | | ????# #????????????????? | | ????# """ " #????????????????? | | ????# """ "" #????????????????? | | ????# " "" #????????????????? | | ????# #????????????????? | | ????# " " #????????????????? | | ????# """ """ #????????????????? | | ????# """ """ #????????????????? | | ????# #????????????????? | | ????##### #######????????????????? | | ????????# ########???????????????? | | ????????# #???????# ??????? | | ????????# #????### ????? | | ???####?######## #???# ????? | | ??## ##??????# #??# ???? | | ?## ##????# #?# ??????? | | ?# ##???# ## #?????????? | | ?# ##### #??????????? | | ?# d " ##?????????? | | ??# " ##????????? | | ??# t ##???????? | | ??# #???????? | | ??# @ #???????? | | ??# ## #???????? | | ??## # #?# ????? | | ???### # ## #?? ### ????? | | ?????# # #### #??? ##???????? | | ?????# ##?##??# ########????????? | | ?????# #??????# #????????????? | | ?????# #??????# % #????????????? | | ?????# #??????####= ##???????????? | | ?????# #?????????#!% #???????????? | | ?????# #?????????# = #???????????? | | ?????# #?????????# ##??????????? | | ?????# #?????????# ##?????????? | | ?????# #??????#??# #?????????? | | ?????# #??????# # # #?????????? | | ?????# #??????? # # #?????????? | | ?????# #???????? # # #????????? | | ?????# #?????????# #####????????? | | ?????# #??????#?## # # #????????? | | ?????# #??????# # ### ##???????? | | ?????# #??????# # # ##?####?? | | ?????# #??????## ## ### ##? | | ?????# #???????# # # ## | | ?????# #???????# | | ?????# #???????#### ## | +----------------------------------------------------+ Best States ------------- Heat Dissipation 25 Energy Generation 12 Energy Capacity 265 Matter Stores 300 Matter Capacity 300 Sight Range 16 Terrain Scan Density 10 Armor Coverage 150 Evasion (%) 50 Recoil Reduction 2 Item Schematics ----------------- None Robot Schematics ------------------ None Fabricated ------------ Nothing Alien Tech Used ----------------- None Achievements -------------- None Challenges ------------ None Game ------ Seed CompactGatlingCarapace Manual? 0 Play Time 00:10:44 Cumulative 644.5 hours Start 2021.11.23 @ 22:57:39 End 2021.11.23 @ 23:05:46 Sessions 1 Manual Loads 0 Difficulty Rogue Special Mode None Game No. 648 Rogue 607 Adventurer 41 Explorer 0 Win Type - Total 31 Types 23/0/6/1/0/0/0/1/0 Lore% 92 Gallery% 93 Achievement% 79 Wizard Run 0 Options --------- ASCII 0 Keyboard 0 Movement Mouse Keybinds 0 Fullscreen 1 Font 18/Terminus Map View 76x50 Tactical HUD 1 Map Filters NONE Filters NONE Steam 1 RUN: af77d933-54ca-46d1-be9d-503e64a05d90